fUSD/lending_fUSD_20260617
["ID","MTS","AMOUNT","RATE_DAILY","PERIOD"]
[425305528,1781683844000,-931.14234597,0.0002038,2]
[425305527,1781683844000,-1734.62772924,0.00020356,2]
[425305538,1781683844000,-520.88101969,0.0002072,2]
[425305530,1781683844000,-160.56703454,0.00020405,2]
[425305531,1781683844000,-1547.0,0.000205,5]
[425305529,1781683844000,-381.6,0.00020381,2]
[425305532,1781683844000,-100000.0,0.000205,2]
[425305534,1781683844000,-3529.35076322,0.000207,2]
[425305535,1781683844000,-500.0,0.0002072,2]
[425305536,1781683844000,-500.0,0.0002072,2]
[425305533,1781683844000,-598.0,0.00020505,4]
[425305537,1781683844000,-500.0,0.0002072,2]
[425305540,1781683844000,-1714.94634292,0.000208,2]
[425305539,1781683844000,-500.0,0.0002072,2]
[425305517,1781683844000,-288.0,0.0002,2]
[425305505,1781683844000,-500.0,0.00019999,2]
[425305515,1781683844000,-162.0,0.0002,2]
[425305542,1781683844000,-162.0,0.00021,2]
[425305495,1781683844000,-1411.79630058,0.000194,2]
[425305496,1781683844000,-24568.85714715,0.000194,2]
[425305497,1781683844000,-296369.97651114,0.000194,2]
[425305499,1781683844000,-913.16003545,0.00019505,2]
[425305498,1781683844000,-827.74,0.00019434,2]
[425305502,1781683844000,-800.0,0.000199,7]
[425305500,1781683844000,-1672.7364795,0.00019808,2]
[425305503,1781683844000,-154.4006556,0.00019902,2]
[425305501,1781683844000,-598.0,0.00019879,3]
[425305514,1781683844000,-901.0,0.0002,2]
[425305504,1781683844000,-500.0,0.00019999,2]
[425305513,1781683844000,-207.0,0.0002,2]
[425305507,1781683844000,-150.0,0.0002,2]
[425305508,1781683844000,-154.0,0.0002,2]
[425305509,1781683844000,-400.0,0.0002,2]
[425305506,1781683844000,-150.0,0.00019999,2]
[425305510,1781683844000,-156.0,0.0002,2]
[425305511,1781683844000,-157875.0,0.0002,2]
[425305512,1781683844000,-7868.0,0.0002,2]
[425305516,1781683844000,-154.0,0.0002,2]
[425305526,1781683844000,-2355.4820707,0.00020353,2]
[425305548,1781683844000,-207.0,0.00021,2]
[425305556,1781683844000,-472.0,0.00021,2]
[425305549,1781683844000,-901.0,0.00021,2]
[425305569,1781683844000,-1865.36488656,0.00021452,2]
[425305573,1781683844000,-397.21611499,0.000215,2]
[425305572,1781683844000,-196.56414411,0.000215,2]
[425305577,1781683844000,-211.439985,0.00021535,2]
[425305575,1781683844000,-189.3475568,0.000215,2]
[425305582,1781683844000,-228.72980365,0.000217,2]
[425305576,1781683844000,-150.0,0.000215,2]
[425305581,1781683844000,-1417.2,0.00021628,2]
[425305580,1781683844000,-152.0,0.00021613,7]
[425305584,1781683844000,-196.56414411,0.000217,2]
[425305568,1781683844000,-216.17170803,0.0002145,2]
[425305579,1781683844000,-152.0,0.00021613,7]
[425305578,1781683844000,-150.0,0.000216,2]
[425305574,1781683844000,-166.26063996,0.000215,2]
[425305585,1781683844000,-397.21611499,0.000217,2]
[425305586,1781683844000,-189.3475568,0.000217,2]
[425305588,1781683844000,-931.14234597,0.00021728,2]
[425305587,1781683844000,-397.35,0.000217,2]
[425305589,1781683844000,-4429.12,0.00021757,2]
[425305590,1781683844000,-299.99,0.00021757,7]
[425305592,1781683844000,-10778.11683519,0.00021757,2]
[425305541,1781683844000,-1798.80895522,0.00020904,2]
[425305583,1781683844000,-202.17172814,0.000217,2]
[425305571,1781683844000,-202.17172814,0.000215,2]
[425305591,1781683844000,-999.99,0.00021757,2]
[425305565,1781683844000,-9360.14,0.00021273,2]
[425305545,1781683844000,-1214.21808109,0.00021,2]
[425305544,1781683844000,-10380.72464927,0.00021,2]
[425305550,1781683844000,-162.0,0.00021,2]
[425305547,1781683844000,-3420.58374904,0.00021,7]
[425305543,1781683844000,-156.0,0.00021,2]
[425305552,1781683844000,-3070.29259136,0.00021,2]
[425305562,1781683844000,-707.480543,0.00021,2]
[425305551,1781683844000,-154.0,0.00021,2]
[425305546,1781683844000,-200.39994813,0.00021,2]
[425305554,1781683844000,-155.0,0.00021,2]
[425305553,1781683844000,-288.0,0.00021,2]
[425305570,1781683844000,-228.72980365,0.000215,2]
[425305558,1781683844000,-161.84367645,0.00021,2]
[425305561,1781683844000,-200.0,0.00021,2]
[425305560,1781683844000,-150.0,0.00021,2]
[425305559,1781683844000,-328.47595335,0.00021,3]
[425305557,1781683844000,-183.0,0.00021,2]
[425305563,1781683844000,-598.0,0.00021131,4]
[425305564,1781683844000,-1117.43,0.00021273,2]
[425305567,1781683844000,-2355.4820707,0.00021407,2]
[425305566,1781683844000,-827.74,0.00021377,2]
[425305555,1781683844000,-173.0,0.00021,2]
[425305595,1781683845000,-2681.7102304,0.00021757,2]
[425305593,1781683845000,-8335.66316481,0.00021757,2]
[425305594,1781683845000,-3625.41678121,0.00021757,2]
[425305600,1781683848000,-151.0,0.00015,2]
[425305601,1781683848000,-1152.51,0.00021757,2]
[425305603,1781683848000,-500.0,0.00021757,2]
[425305602,1781683848000,-354.97146994,0.00021757,2]
[425305664,1781683849000,-578.20924308,0.00022,2]
[425305654,1781683849000,-151.0,0.00022,2]
[425305660,1781683849000,-500.0,0.00022,2]
[425305656,1781683849000,-500.0,0.00022,2]
[425305658,1781683849000,-194.72792766,0.00022,2]
[425305667,1781683849000,-500.0,0.00022,2]
[425305669,1781683849000,-151.0,0.00022,2]
[425305677,1781683849000,-151.0,0.00022,2]
[425305673,1781683849000,-151.0,0.00022,2]
[425305687,1781683849000,-292.96139756,0.00022,2]
[425305671,1781683849000,-500.0,0.00022,2]
[425305695,1781683849000,-151.0,0.00022,2]
[425305675,1781683849000,-500.0,0.00022,2]
[425305691,1781683849000,-151.0,0.00022,2]
[425305679,1781683849000,-500.0,0.00022,2]
[425305681,1781683849000,-151.0,0.00022,2]
[425305685,1781683849000,-151.0,0.00022,2]
[425305689,1781683849000,-151.0,0.00022,2]
[425305683,1781683849000,-500.0,0.00022,2]
[425305693,1781683849000,-151.0,0.00022,2]
[425305703,1781683849000,-162.0,0.00022,2]
[425305697,1781683849000,-156.0,0.00022,2]
[425305699,1781683849000,-207.0,0.00022,2]
[425305701,1781683849000,-901.0,0.00022,2]
[425305650,1781683849000,-670.58624095,0.00022,2]
[425305662,1781683849000,-151.0,0.00022,2]
[425305622,1781683849000,-154.62744259,0.00022,2]
[425305647,1781683849000,-151.0,0.00022,2]
[425305714,1781683849000,-472.0,0.00022,2]
[425305605,1781683849000,-1265.26435305,0.00021757,2]
[425305616,1781683849000,-4309.90089096,0.00021918,2]
[425305613,1781683849000,-690.09910904,0.00021918,2]
[425305607,1781683849000,-598.0,0.00021758,5]
[425305606,1781683849000,-369.92,0.00021757,2]
[425305608,1781683849000,-500.0,0.00021899,2]
[425305610,1781683849000,-397.21611499,0.000219,2]
[425305611,1781683849000,-189.3475568,0.000219,2]
[425305604,1781683849000,-420.1171654,0.00021757,2]
[425305609,1781683849000,-228.72980365,0.000219,2]
[425305612,1781683849000,-5528.0,0.000219,5]
[425305618,1781683849000,-150.0,0.00021918,2]
[425305620,1781683849000,-180.73,0.00021918,2]
[425305624,1781683849000,-200.0,0.00022,2]
[425305636,1781683849000,-151.0,0.00022,2]
[425305630,1781683849000,-200.0,0.00022,2]
[425305632,1781683849000,-500.0,0.00022,2]
[425305626,1781683849000,-174.61919141,0.00022,2]
[425305628,1781683849000,-151.0,0.00022,2]
[425305634,1781683849000,-629.73032806,0.00022,2]
[425305641,1781683849000,-1934.38338736,0.00022,2]
[425305638,1781683849000,-151.0,0.00022,2]
[425305643,1781683849000,-500.0,0.00022,2]
[425305645,1781683849000,-151.0,0.00022,2]
[425305652,1781683849000,-500.0,0.00022,2]
[425305705,1781683849000,-154.0,0.00022,2]
[425305759,1781683849000,-1604.0,0.00022519,2]
[425305711,1781683849000,-173.0,0.00022,2]
[425305781,1781683849000,-438.46,0.00022691,2]
[425305777,1781683849000,-387.78,0.00022604,2]
[425305775,1781683849000,-201.93286098,0.00022548,2]
[425305783,1781683849000,-533.26540027,0.0002271,2]
[425305767,1781683849000,-151.0,0.00022548,2]
[425305779,1781683849000,-9360.14,0.00022691,2]
[425305784,1781683849000,-1932.0,0.0002281,5]
[425305786,1781683849000,-1022.8451391,0.00022858,7]
[425305788,1781683849000,-156.0,0.00023,2]
[425305790,1781683849000,-1018.14572629,0.00023,2]
[425305799,1781683849000,-154.0,0.00023,2]
[425305771,1781683849000,-2005.9555727,0.00022548,2]
[425305800,1781683849000,-288.0,0.00023,2]
[425305795,1781683849000,-901.0,0.00023,2]
[425305793,1781683849000,-180.0,0.00023,2]
[425305792,1781683849000,-207.0,0.00023,2]
[425305801,1781683849000,-173.0,0.00023,2]
[425305805,1781683849000,-183.0,0.00023,2]
[425305803,1781683849000,-472.0,0.00023,2]
[425305807,1781683849000,-707.480543,0.00023,2]
[425305809,1781683849000,-598.0,0.0002301,6]
[425305812,1781683849000,-173.0,0.00023014,7]
[425305811,1781683849000,-150.0,0.00023014,2]
[425305813,1781683849000,-3655.345,0.00023036,2]
[425305797,1781683849000,-162.0,0.00023,2]
[425305773,1781683849000,-151.0,0.00022548,2]
[425305814,1781683849000,-6079.0,0.00023036,2]
[425305755,1781683849000,-2355.4820707,0.0002246,2]
[425305769,1781683849000,-200.0,0.00022548,2]
[425305707,1781683849000,-288.0,0.00022,2]
[425305716,1781683849000,-183.0,0.00022,2]
[425305718,1781683849000,-173.0,0.00022,2]
[425305720,1781683849000,-707.480543,0.00022,2]
[425305722,1781683849000,-151.0,0.00022055,2]
[425305725,1781683849000,-228.72980365,0.000221,2]
[425305735,1781683849000,-397.21611499,0.000223,2]
[425305727,1781683849000,-397.21611499,0.000221,2]
[425305731,1781683849000,-235.17756369,0.0002211,2]
[425305729,1781683849000,-189.3475568,0.000221,2]
[425305733,1781683849000,-228.72980365,0.000223,2]
[425305737,1781683849000,-189.3475568,0.000223,2]
[425305709,1781683849000,-171.0,0.00022,2]
[425305745,1781683849000,-598.0,0.00022384,6]
[425305738,1781683849000,-150.0,0.000223,2]
[425305757,1781683849000,-7678.68427664,0.000225,2]
[425305764,1781683849000,-181.08010149,0.00022548,2]
[425305761,1781683849000,-154.62744265,0.00022548,2]
[425305815,1781683849000,-152.0,0.00023046,30]
[425305763,1781683849000,-200.0,0.00022548,2]
[425305751,1781683849000,-479.76223091,0.00022407,2]
[425305747,1781683849000,-407.0,0.00022392,2]
[425305749,1781683849000,-479.76223091,0.00022407,2]
[425305753,1781683849000,-479.76223091,0.00022407,2]
[425305743,1781683849000,-381.6,0.00022353,2]
[425305740,1781683849000,-1714.94634292,0.000223,2]
[425305833,1781683850000,-150.0,0.000234,7]
[425305830,1781683850000,-500.0,0.00023356,7]
[425305827,1781683850000,-827.74,0.0002332,2]
[425305829,1781683850000,-500.0,0.00023356,7]
[425305828,1781683850000,-500.0,0.00023356,7]
[425305826,1781683850000,-1417.2,0.00023256,7]
[425305831,1781683850000,-2699.30450508,0.00023358,7]
[425305825,1781683850000,-410.99227708,0.000232,2]
[425305819,1781683850000,-151.0,0.00023096,2]
[425305823,1781683850000,-169.24759855,0.00023096,2]
[425305834,1781683850000,-150.0,0.000234,7]
[425305817,1781683850000,-336.42071641,0.00023096,2]
[425305818,1781683850000,-272.7902837,0.00023096,2]
[425305822,1781683850000,-251.73260548,0.00023096,2]
[425305820,1781683850000,-200.0,0.00023096,2]
[425305821,1781683850000,-2080.17592889,0.00023096,2]
[425305816,1781683850000,-931.14234597,0.00023075,2]
[425305824,1781683850000,-419.0,0.0002318,2]
[425305832,1781683850000,-4761.89310575,0.00023358,7]
[425305836,1781683850000,-150.0,0.000234,7]
[425305847,1781683850000,-4927.02840702,0.00023731,2]
[425305850,1781683850000,-96137.53760205,0.0002375,2]
[425305849,1781683850000,-500.0,0.00023749,2]
[425305848,1781683850000,-336.94446711,0.0002374,2]
[425305835,1781683850000,-150.9024875,0.000234,7]
[425305854,1781683850000,-1780.6039044,0.0002375,2]
[425305851,1781683850000,-634.28,0.0002375,2]
[425305852,1781683850000,-6840.81606874,0.0002375,2]
[425305846,1781683850000,-6838.64027692,0.0002365,2]
[425305853,1781683850000,-5958.68617529,0.0002375,2]
[425305843,1781683850000,-151.0,0.00023644,2]
[425305842,1781683850000,-598.0,0.00023636,7]
[425305845,1781683850000,-2157.14243826,0.00023644,2]
[425305838,1781683850000,-4052.4252675,0.00023402,2]
[425305844,1781683850000,-200.0,0.00023644,2]
[425305840,1781683850000,-2355.4820707,0.00023513,2]
[425305841,1781683850000,-266.0,0.00023549,2]
[425305839,1781683850000,-583.0,0.00023507,7]
[425305837,1781683850000,-150.0,0.000234,7]
[425305857,1781684033000,-307.45,0.00015319,2]
[425305858,1781684087000,-245.22,0.00014932,2]
[425305859,1781684140000,-151.0,0.00015319,2]
[425305860,1781684193000,-152.0,0.00015319,2]
[425305861,1781684225000,179.6845346,0.00014519,2]
[425305862,1781684247000,-208.84317877,0.00014789,2]
[425305863,1781684300000,-631.112156,0.00015242,2]
[425305864,1781684353000,-500.0,0.00015242,2]
[425305865,1781684407000,-152.0,0.00015242,2]
[425305867,1781684460000,-151.0,0.00015242,2]
[425305872,1781684513000,-150.0,0.00015242,2]
[425305876,1781684676000,-300.0,0.0001524,2]
[425305877,1781684732000,-1883.66299103,0.0001514,2]
[425305878,1781684756000,-672.70543916,0.0001514,2]
[425305879,1781684800000,250.0,0.00014,2]
[425305899,1781685036000,-166.66,0.00014773,2]
[425305927,1781685037000,-500.0,0.00015239,2]
[425305916,1781685037000,-150.0,0.0001514,2]
[425305905,1781685037000,-600.0,0.00014929,2]
[425305906,1781685037000,-150.0,0.00015077,2]
[425305904,1781685037000,-1044.38457729,0.00014928,2]
[425305911,1781685037000,-150.0,0.0001514,2]
[425305914,1781685037000,-153.0,0.0001514,2]
[425305913,1781685037000,-150.0,0.0001514,2]
[425305909,1781685037000,-300.0,0.00015139,2]
[425305908,1781685037000,-600.0,0.00015095,2]
[425305926,1781685037000,-500.0,0.00015239,2]
[425305907,1781685037000,-166.66,0.00015084,2]
[425305903,1781685037000,-600.0,0.00014851,2]
[425305900,1781685037000,-250.0,0.00014792,2]
[425305902,1781685037000,-1126.61996026,0.00014835,2]
[425305901,1781685037000,-150.0,0.00014812,2]
[425305910,1781685037000,-153.0,0.0001514,2]
[425305919,1781685037000,-500.0,0.00015239,2]
[425305912,1781685037000,-151.0,0.0001514,2]
[425305918,1781685037000,-500.84013449,0.00015239,2]
[425305937,1781685037000,-319.0,0.0001524,2]
[425305915,1781685037000,-152.0,0.0001514,2]
[425305934,1781685037000,-315.0,0.0001524,2]
[425305936,1781685037000,-320.0,0.0001524,2]
[425305935,1781685037000,-152.0,0.0001524,2]
[425305929,1781685037000,-293.08121732,0.00015239,2]
[425305931,1781685037000,-500.0,0.00015239,2]
[425305932,1781685037000,-500.0,0.00015239,2]
[425305933,1781685037000,-500.0,0.00015239,2]
[425305928,1781685037000,-621.65557705,0.00015239,2]
[425305923,1781685037000,-500.0,0.00015239,2]
[425305920,1781685037000,-166.48224055,0.00015239,2]
[425305917,1781685037000,-150.0,0.00015226,2]
[425305924,1781685037000,-500.0,0.00015239,2]
[425305922,1781685037000,-500.0,0.00015239,2]
[425305930,1781685037000,-500.0,0.00015239,2]
[425305925,1781685037000,-500.0,0.00015239,2]
[425305921,1781685037000,-616.59974072,0.00015239,2]
[425305991,1781685038000,-153.0,0.00015242,2]
[425306015,1781685038000,-151.0,0.00015242,2]
[425306013,1781685038000,-317.0,0.00015242,2]
[425306007,1781685038000,-318.0,0.00015242,2]
[425306009,1781685038000,-316.0,0.00015242,2]
[425305997,1781685038000,-151.0,0.00015242,2]
[425305989,1781685038000,-151.0,0.00015242,2]
[425306003,1781685038000,-318.0,0.00015242,2]
[425305992,1781685038000,-152.0,0.00015242,2]
[425306001,1781685038000,-310.0,0.00015242,2]
[425306017,1781685038000,-317.0,0.00015242,2]
[425306005,1781685038000,-151.0,0.00015242,2]
[425306019,1781685038000,-318.0,0.00015242,2]
[425306030,1781685038000,-152.0,0.00015242,2]
[425306021,1781685038000,-150.0,0.00015242,2]
[425306034,1781685038000,-319.0,0.00015242,2]
[425306026,1781685038000,-316.0,0.00015242,2]
[425306028,1781685038000,-320.0,0.00015242,2]
[425306032,1781685038000,-320.0,0.00015242,2]
[425306024,1781685038000,-318.0,0.00015242,2]
[425306038,1781685038000,-316.0,0.00015242,2]
[425306040,1781685038000,-313.0,0.00015242,2]
[425306044,1781685038000,-151.0,0.00015242,2]
[425306046,1781685038000,-320.0,0.00015242,2]
[425306036,1781685038000,-150.0,0.00015242,2]
[425305998,1781685038000,-151.0,0.00015242,2]
[425306011,1781685038000,-150.0,0.00015242,2]
[425305986,1781685038000,-151.0,0.00015242,2]
[425305943,1781685038000,-314.0,0.0001524,2]
[425305984,1781685038000,-150.0,0.00015241,2]
[425306042,1781685038000,-314.0,0.00015242,2]
[425305940,1781685038000,-151.0,0.0001524,2]
[425305939,1781685038000,-313.0,0.0001524,2]
[425305938,1781685038000,-150.0,0.0001524,2]
[425305941,1781685038000,-318.0,0.0001524,2]
[425305950,1781685038000,-152.0,0.00015241,2]
[425305952,1781685038000,-314.0,0.00015241,2]
[425305946,1781685038000,-316.0,0.0001524,2]
[425305954,1781685038000,-319.0,0.00015241,2]
[425305956,1781685038000,-151.0,0.00015241,2]
[425305942,1781685038000,-311.0,0.0001524,2]
[425305944,1781685038000,-318.0,0.0001524,2]
[425305995,1781685038000,-150.0,0.00015242,2]
[425305948,1781685038000,-315.0,0.00015241,2]
[425305960,1781685038000,-319.0,0.00015241,2]
[425305970,1781685038000,-152.0,0.00015241,2]
[425305972,1781685038000,-313.0,0.00015241,2]
[425305976,1781685038000,-309.0,0.00015241,2]
[425305962,1781685038000,-320.0,0.00015241,2]
[425305968,1781685038000,-310.0,0.00015241,2]
[425305964,1781685038000,-151.0,0.00015241,2]
[425305974,1781685038000,-312.0,0.00015241,2]
[425305966,1781685038000,-313.0,0.00015241,2]
[425305978,1781685038000,-153.0,0.00015241,2]
[425305980,1781685038000,-314.0,0.00015241,2]
[425305982,1781685038000,-319.0,0.00015241,2]
[425305958,1781685038000,-321.0,0.00015241,2]
[425306048,1781685038000,-314.0,0.00015242,2]
[425306066,1781685038000,-153.0,0.00015319,2]
[425306058,1781685038000,-312.0,0.00015242,2]
[425306095,1781685038000,-307.45,0.00015689,2]
[425306096,1781685038000,-166.66,0.00015706,2]
[425306097,1781685038000,-200.0,0.00015802,2]
[425306094,1781685038000,-150.0,0.00015551,2]
[425306093,1781685038000,-276.18,0.00015551,2]
[425306098,1781685038000,-307.45,0.00015842,2]
[425306099,1781685038000,-876.21,0.00015876,2]
[425306100,1781685038000,-200.0,0.00015913,2]
[425306101,1781685038000,-307.45,0.00015959,2]
[425306103,1781685038000,-307.45,0.00016059,2]
[425306102,1781685038000,-166.66,0.00016017,2]
[425306105,1781685038000,-307.45,0.00016146,2]
[425306092,1781685038000,-7420.58,0.00015426,2]
[425306106,1781685038000,-1852.05,0.00016168,2]
[425306108,1781685038000,-397.35497286,0.00016236,2]
[425306110,1781685038000,-250.0,0.0001625,2]
[425306109,1781685038000,-600.0,0.0001625,2]
[425306107,1781685038000,-307.45,0.00016225,2]
[425306112,1781685038000,-300.0,0.0001625,2]
[425306104,1781685038000,-214.46,0.000161,2]
[425306113,1781685038000,-200.0,0.0001625,2]
[425306114,1781685038000,-250.0,0.0001625,2]
[425306115,1781685038000,-150.0,0.00016289,2]
[425306118,1781685038000,-1000.0,0.00016337,2]
[425306119,1781685038000,-3381.71,0.00016338,2]
[425306052,1781685038000,-311.0,0.00015242,2]
[425306111,1781685038000,-600.0,0.0001625,2]
[425306091,1781685038000,-166.66,0.00015395,2]
[425306116,1781685038000,-307.45,0.00016298,2]
[425306082,1781685038000,-310.0,0.00015319,2]
[425306086,1781685038000,-151.0,0.00015319,2]
[425306050,1781685038000,-151.0,0.00015242,2]
[425306054,1781685038000,-319.0,0.00015242,2]
[425306060,1781685038000,-312.0,0.00015242,2]
[425306062,1781685038000,-500.0,0.00015288,2]
[425306064,1781685038000,-151.0,0.00015319,2]
[425306117,1781685038000,-166.66,0.00016328,2]
[425306075,1781685038000,-318.0,0.00015319,2]
[425306067,1781685038000,-151.0,0.00015319,2]
[425306073,1781685038000,-314.0,0.00015319,2]
[425306074,1781685038000,-320.0,0.00015319,2]
[425306078,1781685038000,-319.0,0.00015319,2]
[425306077,1781685038000,-316.0,0.00015319,2]
[425306056,1781685038000,-151.0,0.00015242,2]
[425306076,1781685038000,-153.0,0.00015319,2]
[425306069,1781685038000,-151.0,0.00015319,2]
[425306087,1781685038000,-310.0,0.00015319,2]
[425306088,1781685038000,-319.0,0.00015319,2]
[425306081,1781685038000,-321.0,0.00015319,2]
[425306084,1781685038000,-320.0,0.00015319,2]
[425306085,1781685038000,-315.0,0.00015319,2]
[425306080,1781685038000,-314.0,0.00015319,2]
[425306089,1781685038000,-206.28523898,0.00015319,2]
[425306079,1781685038000,-153.0,0.00015319,2]
[425306071,1781685038000,-151.0,0.00015319,2]
[425306090,1781685038000,-150.0,0.00015375,2]
[425306083,1781685038000,-153.0,0.00015319,2]
[425306147,1781685039000,-500.0,0.00016438,2]
[425306150,1781685039000,-500.0,0.00016438,2]
[425306149,1781685039000,-500.0,0.00016438,2]
[425306155,1781685039000,-307.45,0.00016546,2]
[425306148,1781685039000,-500.0,0.00016438,2]
[425306156,1781685039000,-420.0,0.00016566,2]
[425306146,1781685039000,-500.0,0.00016438,2]
[425306151,1781685039000,-511.24,0.00016486,2]
[425306153,1781685039000,-157.48,0.00016495,2]
[425306152,1781685039000,-307.45,0.00016489,2]
[425306167,1781685039000,-307.45,0.00016888,2]
[425306158,1781685039000,-307.45,0.000166,2]
[425306166,1781685039000,-307.45,0.00016844,2]
[425306159,1781685039000,-307.45,0.00016653,2]
[425306163,1781685039000,-500.0,0.0001678,2]
[425306160,1781685039000,-307.45,0.00016703,2]
[425306161,1781685039000,-307.45,0.00016751,2]
[425306157,1781685039000,-1696.77,0.00016576,2]
[425306168,1781685039000,-307.45,0.00016931,2]
[425306141,1781685039000,-500.0,0.00016438,2]
[425306164,1781685039000,-518.0,0.0001678,2]
[425306154,1781685039000,-844.242,0.00016506,2]
[425306136,1781685039000,-262.06216699,0.00016438,2]
[425306130,1781685039000,-500.0,0.00016438,2]
[425306138,1781685039000,-500.0,0.00016438,2]
[425306162,1781685039000,-500.0,0.0001678,2]
[425306120,1781685039000,-2000.0,0.00016363,2]
[425306123,1781685039000,-500.0,0.00016395,2]
[425306121,1781685039000,-307.45,0.00016365,2]
[425306122,1781685039000,-205.63,0.00016389,2]
[425306125,1781685039000,-1492.91,0.0001641,2]
[425306126,1781685039000,-558.38,0.00016412,2]
[425306127,1781685039000,-307.45,0.00016429,2]
[425306128,1781685039000,-500.0,0.00016438,2]
[425306124,1781685039000,-7084.51,0.00016406,2]
[425306142,1781685039000,-500.0,0.00016438,2]
[425306132,1781685039000,-500.0,0.00016438,2]
[425306131,1781685039000,-500.0,0.00016438,2]
[425306134,1781685039000,-500.0,0.00016438,2]
[425306133,1781685039000,-500.0,0.00016438,2]
[425306135,1781685039000,-500.0,0.00016438,2]
[425306137,1781685039000,-500.0,0.00016438,2]
[425306145,1781685039000,-500.0,0.00016438,2]
[425306143,1781685039000,-500.0,0.00016438,2]
[425306139,1781685039000,-500.0,0.00016438,2]
[425306144,1781685039000,-500.0,0.00016438,2]
[425306140,1781685039000,-500.0,0.00016438,2]
[425306129,1781685039000,-500.0,0.00016438,2]
[425306170,1781685039000,-500.0,0.00017054,2]
[425306165,1781685039000,-307.45,0.00016798,2]
[425306171,1781685039000,-500.0,0.00017054,2]
[425306196,1781685039000,-1500.0,0.00018284,2]
[425306201,1781685039000,-1492.91,0.00018461,2]
[425306199,1781685039000,-250.0,0.00018423,2]
[425306202,1781685039000,-244.497722,0.00018529,2]
[425306198,1781685039000,-254.4,0.0001841,2]
[425306204,1781685039000,-1696.77,0.00018648,2]
[425306214,1781685039000,-215.601535,0.00019102,2]
[425306203,1781685039000,-538.0,0.00018626,2]
[425306209,1781685039000,-1555.5,0.00018832,2]
[425306205,1781685039000,-166.66,0.00018662,2]
[425306200,1781685039000,-391.010261,0.00018438,2]
[425306206,1781685039000,-1861.47,0.0001872,2]
[425306210,1781685039000,-167.254524,0.00018913,2]
[425306208,1781685039000,-286.23516208,0.00018767,2]
[425306211,1781685039000,-155.78,0.00018979,2]
[425306212,1781685039000,-166.10136,0.00019007,2]
[425306213,1781685039000,-274.86552032,0.00019073,2]
[425306215,1781685039000,-205.63,0.0001912,2]
[425306216,1781685039000,-166.66,0.00019223,2]
[425306219,1781685039000,-2980.4091,0.00019299,2]
[425306218,1781685039000,-1981.95906151,0.0001928,2]
[425306217,1781685039000,-538.0,0.00019253,3]
[425306207,1781685039000,-19123.15,0.0001872,2]
[425306195,1781685039000,-205.63,0.0001821,2]
[425306197,1781685039000,-225.532622,0.00018346,2]
[425306194,1781685039000,-209.67523999,0.00018187,2]
[425306173,1781685039000,-500.0,0.00017054,2]
[425306172,1781685039000,-500.0,0.00017054,2]
[425306174,1781685039000,-500.0,0.00017054,2]
[425306178,1781685039000,-150.0,0.00018,2]